bitfinex-derivatives/quotes_SOLF0:USTF0_20250924
["timestamp","ask_amount","ask_price","bid_price","bid_amount"]
[1758672002201,7.44,213.4,213.27,7.5]
[1758672002895,7.44,213.53,213.31,5.26041813]
[1758672003101,7.44,213.51,213.32,7.5]
[1758672003304,7.44,213.49,213.32,7.5]
[1758672003503,7.44,213.47,213.34,7.5]
[1758672003703,7.44,213.51,213.35,12.76041813]
[1758672003902,1.17162498,213.5,213.43,7.5]
[1758672004104,7.44,213.51,213.43,7.5]
[1758672004303,1.17155733,213.5,213.43,7.5]
[1758672004499,7.44,213.51,213.43,7.5]
[1758672004701,1.17153398,213.5,213.43,7.5]
[1758672005004,7.44,213.51,213.43,7.5]
[1758672005200,7.44,213.51,213.44,4.2153]
[1758672005405,7.44,213.51,213.43,7.5]
[1758672006504,7.44,213.51,213.45,4.215]
[1758672006906,26.06,213.61,213.43,7.5]
[1758672006907,7.44,213.56,213.43,7.5]
[1758672007306,7.44,213.56,213.48,7.5]
[1758672008607,65.5388,213.55,213.39,12.76041813]
[1758672008812,8.61117468,213.54,213.39,7.5]
[1758672009009,7.44,213.54,213.41,65.5806]
[1758672009209,7.44,213.54,213.42,7.5]
[1758672009410,7.44,213.54,213.45,7.5]
[1758672010914,7.44,213.54,213.45,11.7149]
[1758672013612,7.44,213.54,213.48,7.5]
[1758672014119,7.44,213.65,213.51,7.5]
[1758672014417,7.44,213.65,213.53,7.5]
[1758672015007,4.2109,213.66,213.53,123.94]
[1758672015216,7.77,213.65,213.53,123.94]
[1758672015411,65.505,213.66,213.53,7.5]
[1758672015608,7.77,213.63,213.49,7.85]
[1758672016813,7.77,213.63,213.53,4.2134]
[1758672018018,7.77,213.63,213.5,4.2139]
[1758672018322,7.77,213.63,213.48,7.85]
[1758672018520,7.77,213.63,213.55,65.5373]
[1758672018916,7.77,213.63,213.56,7.85]
[1758672019117,7.77,213.63,213.59,12.0623]
[1758672019313,7.77,213.72,213.58,65.5282]
[1758672019611,7.77,213.72,213.58,7.85]
[1758672019813,7.77,213.71,213.54,7.85]
[1758672020418,7.77,213.68,213.58,4.2123]
[1758672020820,7.77,213.68,213.54,7.85]
[1758672021022,7.77,213.72,213.57,4.2125]
[1758672021219,7.77,213.72,213.54,7.85]
[1758672021931,4.2105,213.69,213.59,4.2122]
[1758672022118,7.77,213.68,213.59,4.2122]
[1758672024526,11.9807,213.68,213.59,4.2122]
[1758672025430,7.76,213.68,213.56,4.2128]
[1758672026223,7.76,213.67,213.54,4.2133]
[1758672026621,7.76,213.62,213.53,7.71]
[1758672027924,7.76,213.62,213.55,4.2129]
[1758672029528,7.76,213.62,213.54,7.71]
[1758672030122,7.76,213.62,213.56,4.2128]
[1758672031035,7.76,213.62,213.54,11.9232]
[1758672031226,116.24,213.68,213.54,11.9232]
[1758672031426,7.76,213.61,213.54,11.9232]
[1758672032422,7.76,213.61,213.55,4.2129]
[1758672032833,7.76,213.61,213.49,7.71]
[1758672033328,7.76,213.59,213.52,4.2136]
[1758672034131,7.76,213.59,213.49,7.71]
[1758672034132,7.76,213.59,213.49,11.9241]
[1758672034330,7.76,213.59,213.49,7.71]
[1758672035626,7.76,213.59,213.52,4.2135]
[1758672035825,7.76,213.59,213.49,7.71]
[1758672036933,7.76,213.59,213.53,4.2133]
[1758672040531,11.9724,213.59,213.51,11.9238]
[1758672041334,7.76,213.59,213.51,7.71]
[1758672041638,7.76,213.59,213.49,4.2142]
[1758672042132,4.2129,213.56,213.5,4.214]
[1758672043932,7.76,213.55,213.51,11.9238]
[1758672045542,4.2129,213.56,213.51,11.9238]
[1758672045740,7.76,213.55,213.51,11.9238]
[1758672046542,4.2129,213.56,213.51,4.2138]
[1758672047140,7.76,213.55,213.51,4.2138]
[1758672047740,7.76,213.55,213.51,11.9238]
[1758672048944,4.2129,213.56,213.51,11.9238]
[1758672049142,4.2126,213.58,213.51,11.9238]
[1758672049345,7.76,213.57,213.53,7.71]
[1758672050038,4.2126,213.58,213.53,7.71]
[1758672050240,7.76,213.57,213.53,7.71]
[1758672050636,7.76,213.59,213.53,11.9233]
[1758672051546,7.76,213.59,213.5,4.2139]
[1758672051844,7.76,213.59,213.49,7.71]
[1758672052350,11.9724,213.59,213.51,11.9238]
[1758672052536,11.9724,213.59,213.51,7.71]
[1758672052945,7.76,213.59,213.51,7.71]
[1758672053146,7.76,213.67,213.51,7.71]
[1758672053445,72.18,213.67,213.51,7.71]
[1758672054143,4.2116,213.63,213.57,7.25]
[1758672054742,18.32897564,213.63,213.57,7.25]
[1758672055944,7.77,213.62,213.58,4.2123]
[1758672056244,7.77,213.62,213.58,11.4623]
[1758672056745,7.77,213.62,213.59,7.25]
[1758672057447,21.88737564,213.63,213.59,7.25]
[1758672057647,7.77,213.64,213.59,7.25]
[1758672058049,4.2111,213.65,213.59,7.25]
[1758672058444,7.77,213.64,213.59,7.25]
[1758672058639,4.2111,213.65,213.59,7.25]
[1758672058839,18.12080366,213.65,213.59,7.25]
[1758672059147,7.77,213.64,213.59,7.25]
[1758672059352,4.2114,213.64,213.58,4.2123]
[1758672059548,7.77,213.63,213.58,4.2123]
[1758672059742,4.2114,213.64,213.58,4.2123]
[1758672059945,7.77,213.63,213.56,11.4628]
[1758672060240,7.77,213.63,213.49,3.90471319]
[1758672060448,7.77,213.63,213.51,11.4637]
[1758672060752,7.77,213.57,213.51,11.4637]
[1758672061050,4.2121,213.6,213.51,7.25]
[1758672061246,7.77,213.61,213.51,7.25]
[1758672062249,11.9821,213.61,213.53,4.2134]
[1758672062656,7.77,213.61,213.53,4.2134]
[1758672063149,4.2124,213.59,213.53,4.2134]
[1758672064555,11.9819,213.61,213.54,4.2131]
[1758672065350,7.77,213.61,213.52,7.25]
[1758672065550,22.06410683,213.65,213.54,7.25]
[1758672065745,359.23045302,213.69,213.67,4.2106]
[1758672065746,7.55555819,213.69,213.67,4.2106]
[1758672065952,19.52224585,213.75,213.69,7.25]
[1758672066256,14.37179283,213.75,213.69,7.25]
[1758672066451,14.37179283,213.75,213.7,4.2101]
[1758672066650,14.37179283,213.75,213.71,7.25]
[1758672066851,65.4491,213.84,213.65,7.25]
[1758672067061,4.2086,213.78,213.67,4.2107]
[1758672067954,4.2086,213.78,213.65,7.25]
[1758672067955,7.77,213.77,213.65,7.25]
[1758672068160,7.77,213.75,213.65,7.25]
[1758672068355,11.98,213.71,213.61,11.4618]
[1758672069866,7.77,213.71,213.61,7.25]
[1758672071461,7.77,213.71,213.62,4.2117]
[1758672072257,7.77,213.71,213.64,4.2113]
[1758672072458,61.18,213.76,213.63,7.25]
[1758672072664,7.15,213.75,213.63,7.25]
[1758672073660,4.2087,213.78,213.67,7.31]
[1758672074066,4.2087,213.78,213.7,4.2101]
[1758672074859,7.15,213.79,213.7,4.2101]
[1758672075163,13.98851009,213.84,213.71,7.31]
[1758672075164,7.15,213.84,213.71,7.31]
[1758672075558,11.3575,213.84,213.71,7.31]
[1758672075760,11.3575,213.84,213.71,72.7961]
[1758672075964,11.3575,213.84,213.72,7.31]
[1758672076168,11.3575,213.84,213.71,65.4861]
[1758672076169,7.15,213.84,213.74,7.31]
[1758672076564,7.15,213.84,213.74,11.5192]
[1758672077061,7.15,213.84,213.74,7.31]
[1758672077257,7.15,213.84,213.76,4.2089]
[1758672078163,7.15,213.84,213.78,4.2085]
[1758672078569,7.15,213.84,213.74,7.31]
[1758672078967,7.15,213.88,213.77,7.31]
[1758672080167,419.464,213.92,213.8,7.31]
[1758672080168,7.15,213.91,213.8,7.31]
[1758672080771,72.5804,213.9,213.74,7.31]
[1758672081463,7.15,213.89,213.74,7.31]
[1758672081769,7.15,213.89,213.76,7.31]
[1758672081964,4.2068,213.87,213.79,4.2082]
[1758672082165,7.15,213.89,213.79,4.2082]
[1758672082761,4.2068,213.87,213.79,4.2082]
[1758672083363,4.2068,213.87,213.76,11.5188]
[1758672083564,4.2072,213.85,213.76,11.5188]
[1758672084068,4.2072,213.85,213.76,7.31]
[1758672084272,4.2075,213.84,213.76,7.31]
[1758672085173,7.37,213.86,213.76,7.31]
[1758672085874,4.2073,213.85,213.76,7.31]
[1758672086369,7.37,213.86,213.77,4.2087]
[1758672086674,7.37,213.9,213.78,7.66]
[1758672087775,4.2064,213.89,213.81,4.2079]
[1758672088276,4.2064,213.89,213.78,7.66]
[1758672089676,4.2064,213.89,213.8,4.208]
[1758672089874,7.37,213.9,213.81,7.66]
[1758672090275,367.80877388,213.92,213.81,7.66]
[1758672090577,4.2063,213.9,213.82,4.2076]
[1758672090976,7.37,213.93,213.81,7.66]
[1758672091174,7.37,213.93,213.79,65.4627]
[1758672091175,7.37,213.93,213.8,89.3]
[1758672091376,7.37,213.93,213.81,7.66]
[1758672093785,4.2058,213.92,213.82,4.2077]
[1758672093972,7.37,213.91,213.82,4.2077]
[1758672094881,4.2062,213.9,213.81,7.66]
[1758672095279,7.37,213.89,213.81,7.66]
[1758672095675,4.2066,213.88,213.81,7.66]
[1758672097379,163.162,213.93,213.72,65.4845]
[1758672097380,11.577,213.87,213.77,7.66]
[1758672100178,4.2072,213.85,213.77,7.66]
[1758672100378,7.37,213.86,213.73,11.8694]
[1758672101385,65.4402,213.87,213.73,11.8694]
[1758672101583,7.37,213.86,213.73,11.8694]
[1758672101787,7.37,213.82,213.73,11.8694]
[1758672102888,4.208,213.81,213.73,11.8694]
[1758672103685,7.37,213.82,213.73,11.8694]
[1758672106585,4.2071,213.86,213.74,73.1377]
[1758672106791,7.37,213.87,213.75,7.66]
[1758672107784,4.2072,213.86,213.77,4.2086]
[1758672107984,4.2072,213.86,213.75,7.66]
[1758672108789,4.2072,213.86,213.79,4.2083]
[1758672109186,7.37,213.85,213.78,7.66]
[1758672109992,7.37,213.85,213.78,11.8685]
[1758672111783,7.37,213.85,213.78,7.66]
[1758672111987,11.5765,213.89,213.78,7.66]
[1758672112496,72.8066,213.88,213.78,7.66]
[1758672112792,72.8066,213.88,213.71,65.488]
[1758672112793,7.37,213.86,213.72,7.66]
[1758672113188,7.37,213.86,213.73,65.4823]
[1758672113389,7.37,213.86,213.76,7.47]
[1758672113593,7.37,213.86,213.78,7.47]
[1758672113793,7.37,213.86,213.83,11.6776]
[1758672113989,11.5563,213.9,213.83,11.6776]
[1758672117090,7.35,213.9,213.85,4.207]
[1758672117297,7.35,213.94,213.86,7.47]
[1758672118599,7.35,213.94,213.81,7.47]
[1758672119500,4.2063,213.9,213.83,4.2074]
[1758672119701,4.2063,213.9,213.81,7.47]
[1758672120803,7.35,213.91,213.81,7.47]
[1758672121803,7.35,213.91,213.85,4.207]
[1758672122004,7.35,213.91,213.85,7.47]
[1758672122392,7.35,213.91,213.81,7.47]
[1758672122897,4.2065,213.89,213.82,4.2077]
[1758672123096,7.35,213.88,213.82,4.2077]
[1758672124597,7.35,213.88,213.84,7.47]
[1758672124808,4.206,213.91,213.8,7.47]
[1758672124997,4.206,213.91,213.85,4.207]
[1758672125705,7.35,213.92,213.86,4.2068]
[1758672127203,11.5559,213.92,213.86,4.2068]
[1758672127704,11.5559,213.92,213.86,11.6768]
[1758672128806,4.2054,213.94,213.87,4.2066]
[1758672129103,7.35,213.93,213.86,7.47]
[1758672129299,4.2061,213.91,213.8,3.90471319]
[1758672129508,7.35,213.9,213.81,7.47]
[1758672130806,7.35,213.9,213.84,4.2073]
[1758672131503,7.35,213.9,213.86,7.47]
[1758672133006,4.2061,213.91,213.86,7.47]
[1758672133208,11.5561,213.91,213.85,4.207]
[1758672134208,11.5556,213.94,213.86,7.47]
[1758672134407,11.5556,213.94,213.86,11.6768]
[1758672134909,4.2057,213.93,213.86,11.6768]
[1758672136207,4.2059,213.92,213.86,11.6768]
[1758672148014,4.2059,213.92,213.86,4.2068]
[1758672148211,7.35,213.94,213.87,7.64]
[1758672148714,13.78777955,213.97,213.87,7.64]
[1758672148914,7.82,213.99,213.93,7.64]
[1758672149113,7.82,214.03,213.93,7.64]
[1758672150513,7.82,214.03,213.95,4.2052]
[1758672150816,7.82,214.03,213.96,7.64]
[1758672151312,4.2033,214.05,213.98,7.64]
[1758672151504,4.2033,214.05,213.98,6.34309059]
[1758672152116,120.50247071,214.06,213.98,10.54749059]
[1758672154214,21.75911052,214.06,213.99,7.64]
[1758672154413,7.82,214.05,213.95,11.845]
[1758672154815,65.3917,214.03,213.88,3.92886856]
[1758672155018,7.82,214.0,213.89,7.64]
[1758672155522,12.0243,214.0,213.92,7.64]
[1758672156117,7.82,214.0,213.93,4.2054]
[1758672156421,4.2039,214.02,213.94,7.64]
[1758672156918,4.2039,214.02,213.89,65.433]
[1758672156919,161.9885,214.04,213.88,7.64]
[1758672157116,65.395,214.02,213.88,7.64]
[1758672157325,7.82,214.01,213.88,7.64]
[1758672157619,7.82,213.99,213.88,7.64]
[1758672158316,7.82,213.96,213.88,7.64]
[1758672158514,33.6,214.02,213.88,65.4348]
[1758672158822,37.804,214.02,213.93,11.8455]
[1758672159021,37.804,214.02,213.93,7.64]
[1758672159222,4.204,214.02,213.93,7.64]
[1758672159521,4.2042,214.01,213.94,4.2052]
[1758672161216,7.82,214.03,213.93,7.64]
[1758672161217,4.2044,214.0,213.93,7.64]
[1758672161523,12.0244,214.0,213.93,7.64]
[1758672161920,12.0244,214.0,213.93,11.8455]
[1758672162322,7.82,214.0,213.93,7.64]
[1758672163222,12.0243,214.0,213.93,7.64]
[1758672163623,7.82,214.01,213.89,7.64]
[1758672163812,12.0251,213.96,213.89,7.64]
[1758672164423,4.2054,213.95,213.89,7.64]
[1758672166623,65.3883,214.04,213.89,7.64]
[1758672166819,108.98,214.03,213.9,7.64]
[1758672167927,4.2041,214.01,213.94,4.2053]
[1758672168325,7.82,214.0,213.94,4.2053]
[1758672170823,7.82,214.0,213.95,11.8451]
[1758672171021,12.0241,214.01,213.95,11.8451]
[1758672171525,12.0241,214.01,213.95,4.2051]
[1758672172122,116.04,214.05,213.93,4.2056]
[1758672172123,7.82,213.99,213.93,4.2056]
[1758672173029,4.2041,214.01,213.93,11.8456]
[1758672173217,7.82,214.0,213.93,11.8456]
[1758672174328,12.0244,214.0,213.93,11.8456]
[1758672175921,4.2046,213.99,213.93,11.8456]
[1758672176123,7.82,214.0,213.91,4.206]
[1758672176328,7.82,214.0,213.9,7.83]
[1758672176517,7.39,213.94,213.9,7.83]
[1758672177628,11.5956,213.93,213.9,7.83]
[1758672177817,11.5956,213.93,213.87,12.0367]
[1758672179129,4.2052,213.95,213.87,12.0367]
[1758672179523,4.2052,213.95,213.88,4.2065]
[1758672180832,4.2055,213.94,213.88,4.2065]
[1758672181126,7.39,213.96,213.83,7.83]
[1758672181326,65.4213,213.93,213.83,7.83]
[1758672181527,7.39,213.92,213.83,7.83]
[1758672181828,7.39,213.92,213.78,4.2725447]
[1758672182135,7.39,213.9,213.79,7.83]
[1758672182935,4.2071,213.86,213.79,7.83]
[1758672184236,4.2074,213.84,213.79,7.83]
[1758672184438,7.39,213.83,213.75,7.83]
[1758672185634,20.56,213.9,213.78,7.83]
[1758672185837,27.95,213.9,213.78,7.83]
[1758672186030,32.1564,213.9,213.79,4.2082]
[1758672186731,11.5964,213.9,213.79,7.83]
[1758672186934,7.39,213.9,213.8,65.4608]
[1758672187134,7.39,213.9,213.81,7.83]
[1758672188834,7.39,213.95,213.84,4.2074]
[1758672189134,7.39,213.95,213.83,7.83]
[1758672189534,7.39,213.95,213.85,7.83]
[1758672190029,7.39,213.95,213.89,4.2064]
[1758672195048,20.31010796,214.06,213.88,65.4364]
[1758672195254,7.77,214.04,213.89,7.19]
[1758672196356,4.2037,214.03,213.9,65.4304]
[1758672196651,7.77,214.02,213.91,7.19]
[1758672197355,7.77,214.02,213.96,4.205]
[1758672199559,7.77,214.02,213.94,7.19]
[1758672200055,11.9739,214.02,213.94,11.3952]
[1758672204658,11.9739,214.02,213.95,4.205]
[1758672204960,15.15965494,214.06,213.93,7.68]
[1758672204961,4.2035,214.04,213.93,7.68]
[1758672205153,72.5855,214.05,213.93,7.68]
[1758672205751,4.2045,213.99,213.93,7.68]
[1758672206062,7.2,213.97,213.88,7.68]
[1758672206351,7.2,213.93,213.84,7.68]
[1758672206554,31.28,214.02,213.87,7.68]
[1758672206760,7.2,214.01,213.87,7.68]
[1758672207855,11.4046,213.98,213.91,4.2059]
[1758672208259,7.2,213.98,213.9,7.68]
[1758672208461,7.2,213.98,213.92,4.2057]
[1758672208656,7.2,214.02,213.91,7.68]
[1758672208955,7.2,213.99,213.91,11.886]
[1758672209658,4.2038,214.02,213.91,7.68]
[1758672210965,4.2038,214.02,213.95,4.205]
[1758672211559,7.2,214.03,213.95,4.205]
[1758672213062,7.2,214.03,213.94,7.68]
[1758672213766,7.2,214.03,213.95,4.2052]
[1758672213966,7.2,214.03,213.94,7.68]
[1758672214366,4.2042,214.01,213.94,11.8852]
[1758672214570,7.2,214.03,213.94,7.68]
[1758672215667,11.4037,214.03,213.96,4.2049]
[1758672215858,7.2,214.03,213.94,7.68]
[1758672216762,7.2,214.03,213.98,4.2045]
[1758672216961,7.2,214.03,213.98,11.8845]
[1758672217364,7.2,214.03,213.99,7.68]
[1758672218869,4.2034,214.05,213.99,7.68]
[1758672219068,4.2034,214.05,213.98,11.8845]
[1758672223869,7.2,214.04,213.96,4.2049]
[1758672224670,4.2038,214.03,213.97,4.2047]
[1758672225470,7.2,214.04,213.96,7.68]
[1758672225773,7.2,214.01,213.88,7.68]
[1758672226177,4.2046,213.99,213.88,7.68]
[1758672226578,4.2046,213.99,213.92,4.2057]
[1758672226778,7.2,214.01,213.93,7.68]
[1758672226779,11.404,214.01,213.93,7.68]
[1758672227777,11.404,214.01,213.94,4.2053]
[1758672228276,11.404,214.01,213.93,7.68]
[1758672229772,11.4045,213.99,213.93,7.68]
[1758672230172,7.2,213.99,213.87,7.68]
[1758672231082,65.3966,214.02,213.9,4.2062]
[1758672231380,7.2,214.01,213.9,4.2062]
[1758672232077,4.205,213.97,213.9,4.2062]
[1758672232280,11.405,213.97,213.9,4.2062]
[1758672234886,7.2,213.97,213.9,4.2062]
[1758672235079,7.2,213.97,213.91,4.2059]
[1758672237879,7.2,213.97,213.88,4.2065]
[1758672238284,7.2,213.97,213.88,11.5265]
[1758672238786,4.2054,213.95,213.88,11.5265]
[1758672239688,7.2,213.97,213.86,11.24886856]
[1758672239986,7.2,213.97,213.87,7.32]
[1758672240794,7.2,213.97,213.91,4.2058]
[1758672241677,11.405,213.97,213.9,7.32]
[1758672241879,176.9181,214.01,213.86,11.24886856]
[1758672242081,7.82,214.0,213.86,7.32]
[1758672242589,7.82,213.98,213.86,7.32]
[1758672243183,12.0247,213.98,213.91,4.2058]
[1758672243383,7.82,213.98,213.91,4.2058]
[1758672243590,7.82,213.98,213.89,7.32]
[1758672244782,4.205,213.97,213.89,11.5263]
[1758672245084,7.82,213.96,213.89,7.32]
[1758672245891,7.82,213.96,213.87,65.4392]
[1758672246092,7.82,213.98,213.88,11.24886856]
[1758672246391,7.82,213.98,213.88,3.92886856]
[1758672246592,7.82,213.98,213.89,7.32]
[1758672246793,7.82,213.98,213.92,4.2057]
[1758672247493,7.82,213.98,213.9,4.2062]
[1758672247994,7.82,213.94,213.86,3.92886856]
[1758672248186,7.82,213.94,213.85,7.32]
[1758672248782,7.82,213.87,213.81,8.13676856]
[1758672248987,7.82,213.87,213.81,4.2079]
[1758672249190,7.82,213.87,213.78,3.92886856]
[1758672249494,7.82,213.88,213.76,7.32]
[1758672249694,7.82,213.86,213.76,7.32]
[1758672249890,65.435,213.89,213.72,11.24886856]
[1758672249891,65.4493,213.84,213.72,11.24886856]
[1758672250197,7.82,213.78,213.69,3.92886856]
[1758672250488,7.82,213.78,213.68,11.24886856]
[1758672251493,7.82,213.78,213.68,7.32]
[1758672252790,4.2088,213.77,213.68,11.5304]
[1758672253091,7.79,213.76,213.68,11.5304]
[1758672253290,21.84266634,213.76,213.68,11.5304]
[1758672253692,7.79,213.76,213.68,11.5304]
[1758672254492,7.79,213.76,213.7,4.2101]
[1758672255694,7.79,213.83,213.7,73.251]
[1758672255894,42.12,213.83,213.7,73.251]
[1758672256194,7.79,213.82,213.7,73.251]
[1758672256792,7.79,213.82,213.73,4.2093]
[1758672258695,21.72932896,213.82,213.73,4.2093]
[1758672259006,7.79,213.8,213.7,4.2099]
[1758672259802,4.2084,213.79,213.7,4.2099]
[1758672259998,7.79,213.78,213.7,4.2099]
[1758672260398,7.79,213.78,213.68,7.76]
[1758672260895,7.79,213.78,213.71,4.2099]
[1758672261203,7.79,213.82,213.73,7.76]
[1758672262195,7.79,213.86,213.78,4.2086]
[1758672262402,7.79,213.92,213.79,7.76]
[1758672262701,22.12096493,213.92,213.79,7.76]
[1758672263200,4.2066,213.89,213.79,7.76]
[1758672263397,14.33096493,213.92,213.8,65.4608]
[1758672263693,7.19,213.93,213.81,7.71]
[1758672264394,21.06888093,213.93,213.81,7.71]
[1758672264898,21.06888093,213.93,213.84,4.2073]
[1758672266700,7.19,213.91,213.82,4.2078]
[1758672267707,7.19,213.91,213.81,7.71]
[1758672267908,7.19,213.91,213.8,4.2081]
[1758672268796,7.19,213.88,213.8,4.2081]
[1758672269305,92.7731,213.96,213.8,4.2081]
[1758672269306,7.19,213.92,213.81,7.71]
[1758672270807,7.19,213.92,213.84,4.2074]
[1758672272210,7.19,213.9,213.82,4.2077]
[1758672272811,7.19,213.9,213.81,7.71]
[1758672273412,4.2067,213.88,213.79,4.2082]
[1758672273711,7.19,213.87,213.77,7.71]
[1758672274809,4.2072,213.85,213.77,7.71]
[1758672275014,7.19,213.84,213.74,11.9193]
[1758672275213,72.6363,213.85,213.74,7.71]
[1758672276110,4.2082,213.8,213.74,7.71]
[1758672276612,7.19,213.89,213.73,7.71]
[1758672276907,7.19,213.87,213.77,11.9186]
[1758672277110,7.19,213.87,213.77,7.71]
[1758672277302,7.19,213.92,213.83,4.2074]
[1758672280518,7.19,213.92,213.84,4.2072]
[1758672281317,62.94,213.95,213.78,73.1756]
[1758672281617,7.19,213.94,213.79,7.71]
[1758672281805,4.2059,213.92,213.82,7.71]
[1758672282008,7.19,213.94,213.83,7.71]
[1758672282316,7.19,213.94,213.84,65.4482]
[1758672282516,7.19,213.94,213.85,7.71]
[1758672283716,7.19,213.94,213.87,4.2067]
[1758672284120,7.19,213.94,213.81,7.71]
[1758672285319,65.4166,213.95,213.82,4.2077]
[1758672285320,11.3963,213.9,213.82,4.2077]
[1758672288422,4.2067,213.88,213.81,7.71]
[1758672288621,7.19,213.9,213.76,7.71]
[1758672289824,4.207,213.86,213.78,4.2085]
[1758672290020,7.19,213.87,213.78,4.2085]
[1758672290922,4.2073,213.85,213.78,4.2085]
[1758672294234,4.2075,213.84,213.78,4.2085]
[1758672294532,7.17,213.85,213.76,7.71]
[1758672295935,7.17,213.85,213.79,4.2082]
[1758672296832,7.17,213.91,213.78,73.0959]
[1758672297034,7.17,213.91,213.79,7.63]
[1758672297240,7.17,213.91,213.81,7.63]
[1758672298828,7.17,213.91,213.85,4.207]
[1758672300535,7.17,213.91,213.83,4.2075]
[1758672301646,7.17,213.91,213.83,7.63]
[1758672302047,7.17,213.91,213.84,4.2073]
[1758672302247,7.17,213.91,213.78,181.2259]
[1758672302248,7.17,213.92,213.78,11.55817946]
[1758672302543,7.17,213.92,213.78,7.63]
[1758672303048,4.2069,213.87,213.8,4.208]
[1758672303245,11.3769,213.87,213.8,4.208]
[1758672303846,7.17,213.87,213.78,7.63]
[1758672304645,4.207,213.86,213.79,4.2082]
[1758672304846,7.17,213.87,213.78,7.63]
[1758672305154,4.207,213.86,213.78,7.63]
[1758672305351,7.17,213.87,213.78,7.63]
[1758672306741,4.2073,213.85,213.78,7.63]
[1758672306944,7.17,213.87,213.78,7.63]
[1758672308251,72.6097,213.87,213.75,8.14359594]
[1758672308646,72.6097,213.87,213.75,3.93449594]
[1758672308944,7.17,213.87,213.75,3.93449594]
[1758672309351,7.17,213.87,213.78,4.2084]
[1758672310150,4.207,213.86,213.79,4.2082]
[1758672311355,7.17,213.92,213.79,7.63]
[1758672312750,11.3758,213.92,213.83,7.21]
[1758672313148,21.34638782,213.96,213.83,7.21]
[1758672313455,25.55148782,213.96,213.83,7.21]
[1758672313951,25.55148782,213.96,213.85,7.21]
[1758672314754,25.55148782,213.96,213.89,4.2062]
[1758672315150,25.55148782,213.96,213.89,7.21]
[1758672315151,7.59,213.96,213.89,7.21]
[1758672315355,4.2046,213.99,213.89,7.21]
[1758672315550,7.59,214.0,213.89,7.21]
[1758672316250,7.59,214.0,213.93,7.21]
[1758672316549,0.47157416,214.04,213.93,7.21]
[1758672316550,7.59,214.04,213.93,7.21]
[1758672317748,7.59,214.04,213.96,4.2048]
[1758672317951,7.59,214.04,213.96,11.4148]
[1758672318650,361.17,214.09,213.99,7.21]
[1758672318857,7.59,214.09,213.99,7.21]